Cogmind - Beta 16 @@@ ROGUE MODE // 2025.11.19 @ 19:10:24 Player: sweetandcool Result: Destroyed by H-77 Assassin with Coil Gun Performance ------------- Evolutions (7) 3500 Regions Visited (20) 4000 Robots Destroyed (102) 510 Value Destroyed (4007) 4007 Prototype IDs (55) 1100 Alien Tech Used (2) 400 Bonus (1442) 1442 TOTAL SCORE: 14959 Bonus ------- Follower Combat Kills 542 Aligned with FarCom 300 Met Data Miner 300 Met Zhirov 300 Cogmind --------- Core Integrity 0/1300 Matter 300/300 Energy 99/100 System Corruption 17% Temperature Cool (0) Movement Core (50) Location -3/Research Parts ------- > --- POWER (2) -------- (None) > --- PROPULSION (8) --- (None) > --- UTILITY (9) ------ (None) > --- WEAPON (2) ------- (None) > --- INVENTORY (5) ---- Advanced Power Amplifier Superbattery (1500) Improved Reaction Control System Nova Cannon Powered Hammer Peak State ------------ > --- POWER ------------ Neutrino Core > --- PROPULSION ------- Thunder Leg Advanced Myomer Leg Advanced Myomer Leg Improved Antigrav System Improved Antigrav System Q-thruster Q-thruster > --- UTILITY ---------- Experimental Thermal Generator Coolant Network Precision Matter Filter Nanoactuators Centrium Medium Armor Plating Advanced Hacking Suite Advanced System Shield > --- WEAPON ----------- Matter Neutralizer Powered Hammer > --- INVENTORY -------- Advanced Power Amplifier Superbattery Improved Reaction Control System Gamma Rifle Nova Cannon [Rating: 134] Favorites ----------- Power Improved Deuterium Engine Engine Improved Deuterium Engine Power Core Light Nuclear Core Reactor Heavy Antimatter Reactor Propulsion Armored Huge Wheel Treads Light Treads Leg Advanced Myomer Leg Wheel Armored Huge Wheel Hover Unit Improved Linear Gravjet Flight Unit Xenon Bombardment Thruster Utility Small Storage Unit Device Advanced ECM Suite Storage Small Storage Unit Processor Makeshift Terrain Scan Processor Hackware Advanced Hacking Suite Protection Improved Light Armor Plating Weapon Flak Gun Energy Gun Small Laser Energy Cannon Plasma Cannon Ballistic Gun Flak Gun Ballistic Cannon Advanced Assault Cannon Launcher Proton Missile Launcher Impact Weapon Powered Hammer Special Melee Weapon Advanced Datajack Build | -11 -10 -10 -10 -9 -8 -7 -7 -7 -7 -6 -6 -6 -6 -5 -5 -5 -5 -4 -4 -3 ------- Run | Yrd Mat Min Exi Min Mat Fac Low Low Dat Pro Fac Ext Cet Fac Upp Upp Zhi Pro Fac Res Slots Evolved 14 | . . . . . 4 2 . . . . 2 . . 2 . . . . 2 2 Power 1 | . . . . . . . . . . . 1 . . . . . . . . . Propulsion 6 | . . . . . 2 . . . . . 1 . . 1 . . . . 1 1 Utility 7 | . . . . . 2 2 . . . . . . . 1 . . . . 1 1 Weapon . | . . . . . . . . . . . . . . . . . . . . . Parts Attached 130 | 6 3 3 . 6 11 14 3 3 . 6 12 7 . 10 3 1 7 4 3 28 Power 28 | 1 1 2 . . 3 3 1 . . 2 2 5 . 2 1 . 1 1 . 3 Engine 16 | 1 1 1 . . 2 2 . . . . 2 5 . 1 . . . 1 . . Core 9 | . . 1 . . 1 1 1 . . 2 . . . 1 1 . . . . 1 Reactor 3 | . . . . . . . . . . . . . . . . . 1 . . 2 Propulsion 30 | 2 . . . 2 2 1 1 . . 1 6 . . 2 1 . 3 . 2 7 Treads 4 | 2 . . . 2 . . . . . . . . . . . . . . . . Leg 6 | . . . . . . . . . . . . . . . . . 3 . . 3 Wheel 5 | . . . . . 2 1 1 . . 1 . . . . . . . . . . Hover 5 | . . . . . . . . . . . . . . 1 . . . . 2 2 Flight 10 | . . . . . . . . . . . 6 . . 1 1 . . . . 2 Utility 43 | 1 2 . . 2 2 6 . 1 . 1 2 1 . 6 . 1 3 2 1 12 Device 26 | . . . . . 1 6 . 1 . . 1 1 . 3 . . 1 2 1 9 Storage 6 | 1 2 . . 2 1 . . . . . . . . . . . . . . . Processor 3 | . . . . . . . . . . . . . . 2 . 1 . . . . Hackware 2 | . . . . . . . . . . . . . . 1 . . 1 . . . Protection 6 | . . . . . . . . . . 1 1 . . . . . 1 . . 3 Artifact . | . . . . . . . . . . . . . . . . . . . . . Weapon 29 | 2 . 1 . 2 4 4 1 2 . 2 2 1 . . 1 . . 1 . 6 Energy Gun 3 | 1 . . . . . . . . . . . 1 . . . . . . . 1 Energy Cannon 5 | . . . . 1 2 . . . . . . . . . . . . . . 2 Ballistic Gun 10 | 1 . . . 1 . 3 . . . 2 2 . . . . . . . . 1 Ballistic Cannon 2 | . . . . . . . . 1 . . . . . . . . . 1 . . Launcher 7 | . . 1 . . 2 1 1 1 . . . . . . 1 . . . . . Special Weapon . | . . . . . . . . . . . . . . . . . . . . . Impact Weapon 1 | . . . . . . . . . . . . . . . . . . . . 1 Slashing Weapon . | . . . . . . . . . . . . . . . . . . . . . Piercing Weapon . | . . . . . . . . . . . . . . . . . . . . . Special Melee Weapon 1 | . . . . . . . . . . . . . . . . . . . . 1 Unidentified Prototypes 12 | . . . . . 1 . . . . . 1 . . 1 . . 5 . . 4 Corrupted Parts 1 | . . . . . . . . . . . . . . . . . . . . 1 System Corruption 10 | . . . . . . . . . . . . . . . . . . . . 10 Parts Lost 71 | . . 2 . 2 3 3 3 3 . 2 . 11 . . . 7 . 3 2 30 Power 10 | . . 2 . . . 1 1 . . . . 1 . . . . . 1 1 3 Propulsion 26 | . . . . 2 . 1 1 . . 1 . 6 . . . 3 . . 1 11 Utility 23 | . . . . . . . . 1 . . . 4 . . . 4 . 1 . 13 Weapon 12 | . . . . . 3 1 1 2 . 1 . . . . . . . 1 . 3 Highest Loss Streak 10 | . . 1 . 1 1 3 1 2 . 1 . 8 . . . 6 . 2 2 10 To Critical Strikes 2 | . . . . . . . . . . . . . . . . . . . . 2 Average Backups 9 | 3 8 11 11 13 14 15 16 14 14 15 6 5 3 3 2 3 3 2 4 4 Power 1 | . 1 . . 1 1 1 3 2 2 . . . . . . 1 1 . . . Propulsion 3 | 1 3 4 5 5 7 7 5 6 6 5 . . . . . . . . . . Utility 3 | . 1 2 3 4 3 4 4 5 5 7 2 . 1 1 . . 1 2 4 4 Weapon 1 | . 1 2 2 1 2 2 2 . . 1 1 1 1 1 . . . . . . Tool/Special . | . . . . . . . . . . . . . . . . . . . . . Unused Backups 29 | . 3 . . 2 1 11 1 1 . 2 4 2 . . . . . . . 2 Power 5 | . . . . . . 1 1 1 . . . 2 . . . . . . . . Propulsion 12 | . 2 . . 2 1 6 . . . 1 . . . . . . . . . . Utility 9 | . . . . . . 3 . . . 1 3 . . . . . . . . 2 Weapon 2 | . 1 . . . . . . . . . 1 . . . . . . . . . Tool/Special 1 | . . . . . . 1 . . . . . . . . . . . . . . Average Slot Usage (%) 74 | . 97 99 100 93 70 82 83 79 84 76 94 92 . 21 53 31 36 59 54 58 Engine 5 | . 14 12 14 14 4 3 4 . . . 9 12 . 1 . . . 3 . . Core 1 | . . . . . 4 3 2 7 7 7 2 . . . . . . . . . Treads 5 | . 28 28 28 21 3 . . . . . . . . . . . . . . . Leg 2 | . . . . . . . . . . . . . . . . . 11 17 15 10 Wheel 5 | . . . . . 14 14 14 15 15 15 . . . . . . . . . . Flight 4 | . . . . . . . . . . . 32 32 . 3 6 5 . . . 2 Device 12 | . . . . . . 21 23 22 23 9 19 20 . 8 17 7 2 10 9 13 Storage 16 | . 25 28 28 28 25 23 23 23 23 23 13 10 . . 4 2 . . . . Processor 1 | . . . . . . . . . . . . . . 4 11 6 5 5 5 1 Hackware 1 | . . . . . . . . . . . . . . . 5 5 8 11 10 8 Protection 1 | . . . . . . . . . . 5 5 5 . . . . 2 . . 3 Energy Gun 2 | . 14 14 14 2 . . . . . . . 1 . . . . . . . . Energy Cannon 2 | . . . . 11 11 4 . . . . . . . . . . . . . 1 Ballistic Gun 4 | . 14 13 14 5 . 5 6 2 . 4 9 5 . . . . . . . . Launcher 2 | . . . . 8 5 3 6 5 7 2 . . . . . . . . . . Peak Build Rating 134 | 6 8 11 10 11 45 51 50 50 49 51 65 69 3 48 69 64 64 92 94 134 Average Rating 45 | 4 7 8 9 10 31 47 49 46 49 48 58 60 3 25 58 35 46 86 92 95 On Entrance 35 | . 6 8 9 10 11 36 49 49 49 49 51 60 3 3 48 64 13 64 74 79 Avg Prop Armor Cover (%) 8 | . . . . . . . . . . . . . . 7 8 11 . . 6 4 Naked Turns 64 | . . . . . . . . . . . . 3 27 24 . . . . . 10 Heaviest Build 105 | 13 31 33 31 35 88 91 92 87 87 105 43 43 . 13 9 9 22 49 30 57 Greatest Support 90 | 40 40 40 40 40 56 65 56 56 56 56 40 40 3 11 14 14 90 90 90 90 Greatest Overweight (x) 3 | . . . . 1 1 1 3 1 1 1 1 3 . 1 . 1 . . 2 2 Average Overweight (x) . | . . . . . . 1 1 1 1 1 . . . . . . . . . . Largest Inventory Capacity 20 | 8 15 15 15 20 20 20 20 20 20 20 20 8 5 5 5 5 5 5 5 5 Average Capacity 12 | 7 9 15 15 15 18 20 20 20 20 20 8 7 5 5 5 5 5 5 5 5 Most Carried 20 | 6 10 14 14 15 20 20 20 20 19 20 19 8 5 5 5 5 5 5 5 5 Average Carried 12 | 3 8 11 12 14 18 19 19 19 19 19 8 7 5 5 4 4 5 2 4 4 Final Capacity 20 | 8 15 15 15 15 20 20 20 20 20 20 8 5 5 5 5 5 5 5 5 5 Final Carried 20 | 6 10 12 14 15 20 20 19 19 19 20 8 5 5 5 5 5 5 3 5 5 Class Distribution -------------------- 67% | Mutant 13% | Hacker-Mutant 8% | Infiltrator-Sprinter 6% | Infiltrator-Mutant Dominant Class ---------------- Mutant | -10/Materials Mutant | -10/Mines Mutant | -10/Exiles Mutant | -9/Mines Mutant | -8/Materials Mutant | -7/Factory Mutant | -7/Lower Caves Mutant | -7/Lower Caves Mutant | -7/Data Miner Mutant | -6/Proximity Caves Infiltrator-Sprinter | -6/Factory Infiltrator-Sprinter | -6/Extension Mutant | -6/Cetus Mutant | -5/Factory Infiltrator-Mutant | -5/Upper Caves Mutant | -5/Upper Caves Hacker-Mutant | -5/Zhirov Hacker-Mutant | -4/Proximity Caves Hacker-Mutant | -4/Factory Hacker-Mutant | -3/Research Resources | -11 -10 -10 -10 -9 -8 -7 -7 -7 -7 -6 -6 -6 -6 -5 -5 -5 -5 -4 -4 -3 ----------- Run | Yrd Mat Min Exi Min Mat Fac Low Low Dat Pro Fac Ext Cet Fac Upp Upp Zhi Pro Fac Res Matter Collected 3268 | 266 41 156 . 200 240 328 308 201 . 297 10 460 . . 174 18 . 150 . 419 Remotely . | . . . . . . . . . . . . . . . . . . . . . Salvage Created 4694 | 105 60 172 . 186 919 535 499 318 . 278 10 676 . . 112 . . 30 . 794 Parts 194 | 6 3 7 . 16 43 29 23 14 . 8 3 13 . . 6 . . . . 23 Haulers Intercepted 7 | . 1 . . . . 1 . . . . . 5 . . . . . . . . Recyclers Shooed 1 | . . 1 . . . . . . . . . . . . . . . . . . Parts Field Recycled . | . . . . . . . . . . . . . . . . . . . . . Retrieved Matter . | . . . . . . . . . . . . . . . . . . . . . Parts Self-Destructed 38 | . . . . . . . 10 12 . 13 . . . . 3 . . . . . Prevented 8 | . . . . . . . 8 . . . . . . . . . . . . . Parts Restored . | . . . . . . . . . . . . . . . . . . . . . Kills | -11 -10 -10 -10 -9 -8 -7 -7 -7 -7 -6 -6 -6 -6 -5 -5 -5 -5 -4 -4 -3 ------- Run | Yrd Mat Min Exi Min Mat Fac Low Low Dat Pro Fac Ext Cet Fac Upp Upp Zhi Pro Fac Res Combat Hostiles Destroyed 86 | . . 6 . 11 14 6 12 8 . 9 . 4 . . 4 . . 1 . 11 Melee 2 | . . . . . . . . 1 . . . . . . . . . . . 1 Guns 21 | . . 4 . 3 . 2 4 3 . . . 4 . . . . . . . 1 Cannons 17 | . . . . 2 7 1 . 1 . 3 . . . . . . . 1 . 2 AOE 33 | . . 2 . 6 3 2 6 3 . 6 . . . . 4 . . . . 1 Classes Destroyed 15 | 2 1 3 . 1 4 3 . . . . 1 . . . . . . . . . Worker 2 | . . . . . . . . . . . 1 . . . . . . . . 1 Builder 1 | . . . . . . 1 . . . . . . . . . . . . . . Tunneler 2 | 1 . . . . 1 . . . . . . . . . . . . . . . Hauler 7 | . 1 . . . . 1 . . . . . 5 . . . . . . . . Recycler 4 | 1 . 1 . . 1 1 . . . . . . . . . . . . . . Operator 2 | . . . . . 1 1 . . . . . . . . . . . . . . Swarmer 21 | . . 3 . 9 2 . 2 . . 1 . . . . 4 . . . . . Grunt 29 | . . 1 . 1 7 2 6 6 . 2 . 1 . . . . . . . 3 Brawler 4 | . . . . 1 . . 1 . . 2 . . . . . . . . . . Duelist 7 | . . . . . 1 . 1 1 . 3 . 1 . . . . . . . . Sentry 8 | . . . . . 3 . 1 . . 1 . 2 . . . . . . . 1 Specialist 1 | . . . . . . 1 . . . . . . . . . . . . . . Hunter 10 | . . . . . 1 1 1 1 . . . . . . . . . 1 . 5 Programmer 4 | . . . . . . 2 . . . . . . . . . . . . . 2 Assembled 2 | . . 2 . . . . . . . . . . . . . . . . . . Best Kill Streak 8 | 1 1 3 . 3 8 4 4 4 . 8 1 2 . . 4 . . 1 . 5 Combat Bots Only 8 | . . 3 . 3 5 4 4 4 . 8 . 2 . . 4 . . 1 . 4 Max Kills in Single Turn 4 | 1 1 1 . 2 3 2 2 1 . 4 1 1 . . 2 . . 1 . 1 Gunslinging 1 | . . . . . . 1 . . . . . . . . . . . . . . Exploded 4 | . . 1 . 2 1 1 2 1 . 4 . . . . 2 . . . . 1 Melee 1 | . . . . . . . . 1 . . . . . . . . . . . 1 Uniques/NPCs Destroyed . | . . . . . . . . . . . . . . . . . . . . . Combat | -11 -10 -10 -10 -9 -8 -7 -7 -7 -7 -6 -6 -6 -6 -5 -5 -5 -5 -4 -4 -3 -------- Run | Yrd Mat Min Exi Min Mat Fac Low Low Dat Pro Fac Ext Cet Fac Upp Upp Zhi Pro Fac Res Hostile Shots Fired 1339 | . . 49 . 59 71 33 96 43 . 40 1 151 2 15 21 52 . 112 33 561 Missed 561 | . . 11 . 20 21 11 42 4 . 16 . 84 . 9 12 28 . 46 19 238 Hits 778 | . . 38 . 39 50 22 54 39 . 24 1 67 2 6 9 24 . 66 14 323 Melee 10 | . . . . 2 . . 4 2 . 2 . . . . . . . . . . Projectile 768 | . . 38 . 37 50 22 50 37 . 22 1 67 2 6 9 24 . 66 14 323 Critical Strikes 22 | . . 2 . . . 1 1 1 . 1 . 2 . . . 2 . . . 12 Damage Taken 13288 | . . 515 . 366 1058 578 875 642 . 611 18 1089 51 79 177 481 . 1128 438 5182 Core 3180 | . . 94 . 84 195 165 81 72 . 36 . 418 51 62 74 320 . 105 118 1305 Absorbed by Shields . | . . . . . . . . . . . . . . . . . . . . . Core Remaining (%) 59 | 100 . . . 28 64 . . . . 49 . . 44 . . . . 39 89 . Volleys Fired 317 | 9 7 29 . 23 48 36 33 23 . 24 3 36 . . 3 . . 8 . 35 Largest 2 | 2 2 2 . 2 2 2 2 2 . 2 2 2 . . 1 . . 1 . 2 Hottest 188 | 60 60 60 . 86 136 108 71 108 . 76 56 108 . . 36 . . 47 . 188 Shots Fired 428 | 11 14 52 . 33 62 43 40 30 . 29 6 52 . . 3 . . 8 . 45 Gun 215 | 11 14 47 . 18 . 11 19 21 . . 6 52 . . . . . . . 16 Cannon 118 | . . . . 6 41 5 . 4 . 25 . . . . . . . 8 . 29 Launcher 95 | . . 5 . 9 21 27 21 5 . 4 . . . . 3 . . . . . Special . | . . . . . . . . . . . . . . . . . . . . . Kinetic 170 | 2 7 24 . 9 . 11 19 21 . 25 6 34 . . . . . 8 . 4 Thermal 118 | 9 7 23 . 9 14 5 . 4 . . . 18 . . . . . . . 29 Explosive 30 | . . 5 . 9 . . 7 5 . 4 . . . . . . . . . . Electromagnetic 110 | . . . . 6 48 27 14 . . . . . . . 3 . . . . 12 Robot Hit Streak 16 | 5 2 7 . 3 6 7 8 5 . 7 3 16 . . 1 . . 4 . 13 Robot Miss Streak 6 | 2 6 2 . 3 3 5 3 2 . 1 1 5 . . 2 . . 1 . 6 Penetration Max 1 | . . . . . . . 1 . . . . . . . . . . . . . Secondary Targets 3 | . . . . 2 . 1 . . . . . . . . . . . . . . Max Gunslinging Chain 1 | . . . . 1 . 1 . . . . . . . . . . . . . . Shots Hit Robots 286 | 7 5 33 . 12 38 20 24 21 . 21 2 48 . . 1 . . 7 . 47 Core Hits 195 | 3 2 12 . 12 22 16 21 18 . 17 2 50 . . 6 . . 3 . 11 Critical Kills 2 | . . . . . . 1 . . . . . . . . . . . . . 1 Critical Parts Destroyed 7 | . . . . . . . . 2 . . . . . . . . . . . 5 Critical Strikes 10 | . . . . . . 1 . 2 . . . . . . . . . . . 7 Meltdown 2 | . . . . . . 1 . . . . . . . . . . . . . 1 Destroy 2 | . . . . . . . . 2 . . . . . . . . . . . . Corrupt 1 | . . . . . . . . . . . . . . . . . . . . 1 Smash 5 | . . . . . . . . . . . . . . . . . . . . 5 Melee Attacks 27 | . . . . . . . . . . . . . . . . . . . . 27 Impact 25 | . . . . . . . . . . . . . . . . . . . . 25 Slashing . | . . . . . . . . . . . . . . . . . . . . . Piercing . | . . . . . . . . . . . . . . . . . . . . . Sneak Attacks . | . . . . . . . . . . . . . . . . . . . . . Combat Hostiles . | . . . . . . . . . . . . . . . . . . . . . Follow-up Attacks . | . . . . . . . . . . . . . . . . . . . . . Damage Inflicted 9649 | 75 57 460 . 498 1456 758 1183 852 . 1120 39 1010 . . 150 . . 142 . 1849 Guns 2653 | 75 57 398 . 92 . 152 333 325 . . 39 1010 . . . . . . . 172 Cannons 2358 | . . . . 81 703 58 . 54 . 464 . . . . . . . 142 . 856 Explosions 3816 | . . 62 . 325 753 548 850 472 . 656 . . . . 150 . . . . . Melee 797 | . . . . . . . . . . . . . . . . . . . . 797 Ramming 25 | . . . . . . . . 1 . . . . . . . . . . . 24 Kinetic 2398 | 10 34 233 . 26 . 152 333 325 . 464 39 616 . . . . . 142 . 24 Thermal 2038 | 65 23 165 . 133 244 58 46 54 . . . 394 . . . . . . . 856 Explosive 1957 | . . 62 . 258 . . 509 472 . 656 . . . . . . . . . . Electromagnetic 2434 | . . . . 81 1212 548 295 . . . . . . . 150 . . . . 148 Impact 797 | . . . . . . . . . . . . . . . . . . . . 797 Slashing . | . . . . . . . . . . . . . . . . . . . . . Piercing . | . . . . . . . . . . . . . . . . . . . . . Highest Corruption 17 | . . . . . 2 . 1 1 1 1 . 1 1 . 1 5 5 5 . 17 Average Corruption 2 | . . . . . 2 . 1 1 1 1 . 1 1 . 1 1 5 5 . 8 Corruption Purged . | . . . . . . . . . . . . . . . . . . . . . Corruption Blocked . | . . . . . . . . . . . . . . . . . . . . . Effects 56 | . . . . . . . 7 2 2 8 . . . . 3 4 6 6 . 18 Message Errors 11 | . . . . . . . 1 . . 2 . . . . 1 2 . 1 . 4 Matter Fused 21 | . . . . . . . 5 1 1 3 . . . . 2 1 3 2 . 3 Heat Flow Errors 2 | . . . . . . . . . 1 . . . . . . . 1 . . . Energy Discharges 5 | . . . . . . . . . . 1 . . . . . . 1 2 . 1 Parts Rejected 2 | . . . . . . . . . . . . . . . . . . . . 2 Parts Fused 1 | . . . . . . . . . . . . . . . . . . . . 1 Data Loss (minor) 5 | . . . . . . . . 1 . . . . . . . 1 1 1 . 1 Data Loss (major) 2 | . . . . . . . 1 . . 1 . . . . . . . . . . Misfires 2 | . . . . . . . . . . 1 . . . . . . . . . 1 Alerts 1 | . . . . . . . . . . . . . . . . . . . . 1 Misdirections 3 | . . . . . . . . . . . . . . . . . . . . 3 Weapon Failures 1 | . . . . . . . . . . . . . . . . . . . . 1 Overload Shots . | . . . . . . . . . . . . . . . . . . . . . Overflow Damage 461 | . . . . . 62 45 . . . 17 . . . . 22 . . . . 315 Projectiles 31 | . . . . . 30 . . . . 1 . . . . . . . . . . Explosions 115 | . . . . . 32 45 . . . 16 . . . . 22 . . . . . Melee 315 | . . . . . . . . . . . . . . . . . . . . 315 Knockbacks 12 | . . . . . . . . . . 5 . . . . . . . 4 . 3 Impact 3 | . . . . . . . . . . . . . . . . . . . . 3 Kinetic 7 | . . . . . . . . . . 4 . . . . . . . 3 . . Secondary 2 | . . . . . . . . . . 1 . . . . . . . 1 . . Self-Inflicted Damage 597 | . . 30 . 22 277 1 177 . . 68 . . . . 22 . . . . . Shots 15 | . . 1 . 1 4 1 5 . . 2 . . . . 1 . . . . . Rammed 1 | . . . . . . . . 1 . . . . . . . . . . . . Targets Rammed 6 | . . . . . . . . 1 . . . . . . . . . . . 5 Kicked 5 | . . . . . . . . . . . . . . . . . . . . 5 Crushed . | . . . . . . . . . . . . . . . . . . . . . Highest Temperature 260 | . . 126 . 88 260 126 9 62 214 17 97 240 . . . . 144 . . 1 Average Temperature 67 | . . 57 . 49 98 58 5 26 111 12 32 73 . . . . 84 . . 1 Received Heat Transfer 1767 | . . 171 . . 351 36 228 324 . 117 9 171 9 . 18 66 . 9 9 249 Effects 2 | . . . . . 2 . . . . . . . . . . . . . . . Energy Bleed 1 | . . . . . 1 . . . . . . . . . . . . . . . Interference 1 | . . . . . 1 . . . . . . . . . . . . . . . Siege Activations . | . . . . . . . . . . . . . . . . . . . . . Martial Activations . | . . . . . . . . . . . . . . . . . . . . . Shielding Activations . | . . . . . . . . . . . . . . . . . . . . . Robots Disrupted . | . . . . . . . . . . . . . . . . . . . . . Combat Hostiles . | . . . . . . . . . . . . . . . . . . . . . Robots Corrupted 11 | . . . . . 4 1 2 . . . . . . . . . . . . 4 Combat Hostiles 11 | . . . . . 4 1 2 . . . . . . . . . . . . 4 Parts Fried 19 | . . . . . 8 6 2 . . . . . . . . . . . . 3 Impact Corruptions 12 | . . . . . . . . . . . . . . . . . . . . 12 Robots Melted 3 | . . . . . . 1 . . . . . . . . . . . . . 2 Combat Hostiles 2 | . . . . . . . . . . . . . . . . . . . . 2 Parts Melted 6 | . . . . . 1 1 . . . . . . . . . . . . . 4 Heat Transferred 3289 | 150 50 375 . 250 500 100 50 100 . . . 900 . . . . . . . 814 Parts Sabotaged . | . . . . . . . . . . . . . . . . . . . . . Parts Stolen . | . . . . . . . . . . . . . . . . . . . . . Parts Stripped . | . . . . . . . . . . . . . . . . . . . . . Power Chain Reactions 3 | . . . . . . 1 1 . . . . . . . 1 . . . . . Alert | -11 -10 -10 -10 -9 -8 -7 -7 -7 -7 -6 -6 -6 -6 -5 -5 -5 -5 -4 -4 -3 ------- Run | Yrd Mat Min Exi Min Mat Fac Low Low Dat Pro Fac Ext Cet Fac Upp Upp Zhi Pro Fac Res Maximum Alert Level 1 | . . . . . 1 . . . . . . . . . . . . . 1 1 Low Security (%) 96 | 100 100 100 . 100 83 100 . . . . 100 100 100 100 . . . . . 98 Level 1 3 | . . . . . 16 . . . . . . . . . . . . . 100 1 Level 2 . | . . . . . . . . . . . . . . . . . . . . . Level 3 . | . . . . . . . . . . . . . . . . . . . . . Level 4 . | . . . . . . . . . . . . . . . . . . . . . Level 5 . | . . . . . . . . . . . . . . . . . . . . . High Security . | . . . . . . . . . . . . . . . . . . . . . Max Security . | . . . . . . . . . . . . . . . . . . . . . Peak Influence 319 | 5 7 83 . 183 319 143 . . . . 95 74 29 43 . . . . 300 205 Initial 300 | . . . . . 44 141 . . . . . 36 29 10 . . . . 300 128 Average 50 | . . 19 . 76 125 46 . . . . 16 21 26 9 . . . . 278 70 Influence Increases 4561 | 10 7 128 . 368 587 289 270 190 . 256 110 584 . 127 210 390 . 30 345 660 Destroy 0b10 Robot/C 2020 | . . 80 . 220 320 120 240 160 . 240 . 320 . . 80 . . 20 . 220 Destroy 0b10 Robot/NC 105 | 10 5 5 . . 15 20 . . . . 5 40 . . . . . . . 5 Destroy Leader 358 | . 2 20 . 30 80 52 30 30 . 10 . 34 . . 10 . . 10 . 50 Allied During Kill 79 | . . . . . 10 . . . . 6 . 63 . . . . . . . . Successful Hack 100 | . . . . . 3 19 . . . . . . . 22 . . . . . 56 Disable Machine 165 | . . . . 45 90 30 . . . . . . . . . . . . . . Destroy Structure 129 | . . 23 . 58 24 3 . . . . . 7 . . . . . . . 14 Advance Influence 300 | . . . . . . . . . . . . . . . . . . . 300 . Partial Spotted 15 | . . . . . . . . . . . . . . . . . . . . 15 Lose Combat Pursuer 1290 | . . . . 15 45 45 . . . . 105 120 . 105 120 390 . . 45 300 Influence Decreases 4388 | 10 7 128 . 252 392 506 364 190 . 256 35 606 34 129 108 331 178 30 100 732 Entered New Map 676 | . . . . . 72 170 36 . . . . 39 24 9 8 23 178 . . 117 Time Decay 2936 | 10 7 114 . 242 230 335 308 160 . 216 35 351 10 120 100 238 . 10 80 370 Lost Part 570 | . . 14 . 10 30 1 20 30 . 20 . 90 . . . 70 . 20 20 245 Lost Ally 206 | . . . . . 60 . . . . 20 . 126 . . . . . . . . Squads Dispatched 25 | . . . . . 4 5 . . . 1 2 1 . 3 . . . . . 9 Investigation 5 | . . . . . 1 . . . . . 1 . . 1 . . . . . 2 Extermination 6 | . . . . . . 2 . . . . . . . 1 . . . . . 3 Reinforcement 12 | . . . . . 2 3 . . . . 1 1 . 1 . . . . . 4 Assault 1 | . . . . . . . . . . 1 . . . . . . . . . . Garrison 1 | . . . . . 1 . . . . . . . . . . . . . . . Intercept . | . . . . . . . . . . . . . . . . . . . . . Searches Triggered . | . . . . . . . . . . . . . . . . . . . . . Data Miner Redirects 1 | . . . . . . . . . . . . . . . . . . . . 1 Construction Impeded 3 | . . . . . . 1 . . . . . 1 . . . . . . . 1 Haulers Reinforced . | . . . . . . . . . . . . . . . . . . . . . Active Scanning Responses . | . . . . . . . . . . . . . . . . . . . . . Cargo Convoy Interrupts . | . . . . . . . . . . . . . . . . . . . . . Stealth | -11 -10 -10 -10 -9 -8 -7 -7 -7 -7 -6 -6 -6 -6 -5 -5 -5 -5 -4 -4 -3 --------- Run | Yrd Mat Min Exi Min Mat Fac Low Low Dat Pro Fac Ext Cet Fac Upp Upp Zhi Pro Fac Res Distress Signals 10 | . . . . . 2 . . . . . . 4 1 . . . . 1 . 2 Communications Jammed . | . . . . . . . . . . . . . . . . . . . . . Distress Signals . | . . . . . . . . . . . . . . . . . . . . . Times Spotted 234 | . 1 7 . 11 20 11 13 8 . 14 5 31 5 15 11 27 . 6 5 44 Peak Tracking Total 11 | . . 3 . 4 5 5 5 4 . 9 7 11 5 5 5 8 . 5 4 11 Tactical Retreats 32 | . . . . 1 3 2 . . . . 2 4 . 4 2 8 . . 1 5 Traps | -11 -10 -10 -10 -9 -8 -7 -7 -7 -7 -6 -6 -6 -6 -5 -5 -5 -5 -4 -4 -3 ------- Run | Yrd Mat Min Exi Min Mat Fac Low Low Dat Pro Fac Ext Cet Fac Upp Upp Zhi Pro Fac Res Traps Triggered 13 | . . . . . . 10 . . . . . 1 . . . . . . . 2 Indirectly 8 | . . . . . . 8 . . . . . . . . . . . . . . Trap Hack Attempts . | . . . . . . . . . . . . . . . . . . . . . Triggered . | . . . . . . . . . . . . . . . . . . . . . Disarmed . | . . . . . . . . . . . . . . . . . . . . . Reprogrammed . | . . . . . . . . . . . . . . . . . . . . . Reused . | . . . . . . . . . . . . . . . . . . . . . Traps Extracted . | . . . . . . . . . . . . . . . . . . . . . Installed . | . . . . . . . . . . . . . . . . . . . . . Triggered . | . . . . . . . . . . . . . . . . . . . . . Machines | -11 -10 -10 -10 -9 -8 -7 -7 -7 -7 -6 -6 -6 -6 -5 -5 -5 -5 -4 -4 -3 ---------- Run | Yrd Mat Min Exi Min Mat Fac Low Low Dat Pro Fac Ext Cet Fac Upp Upp Zhi Pro Fac Res Machines Disabled 12 | . . . . 3 6 2 . . . 1 . . . . . . . . . . Max in Single Turn 3 | . . . . 3 2 2 . . . 1 . . . . . . . . . . Machines Repaired . | . . . . . . . . . . . . . . . . . . . . . Machines Dismantled . | . . . . . . . . . . . . . . . . . . . . . Machines Sabotaged . | . . . . . . . . . . . . . . . . . . . . . Overloaded Fab Kills . | . . . . . . . . . . . . . . . . . . . . . Hacking | -11 -10 -10 -10 -9 -8 -7 -7 -7 -7 -6 -6 -6 -6 -5 -5 -5 -5 -4 -4 -3 --------- Run | Yrd Mat Min Exi Min Mat Fac Low Low Dat Pro Fac Ext Cet Fac Upp Upp Zhi Pro Fac Res Machines Accessed 49 | . 1 . 1 . 2 6 . 1 4 . 3 1 . 9 1 . 9 . 2 9 Terminals 24 | . 1 . . . 1 4 . . . . 2 1 . 6 1 . . . 2 6 Fabricators 3 | . . . . . . 1 . . . . . . . 2 . . . . . . Repair Stations 1 | . . . . . . . . . . . 1 . . . . . . . . . Recycling Units 1 | . . . . . . . . . . . . . . . . . . . . 1 Scanalyzers 4 | . . . . . 1 1 . . . . . . . 1 . . . . . 1 Garrison Access 1 | . . . . . . . . . . . . . . . . . . . . 1 Total Hacks 163 | . 3 . 1 . 6 16 . 1 30 . 8 3 . 17 1 . 48 . 4 25 Successful 116 | . 2 . 1 . 4 7 . 1 30 . 1 1 . 7 1 . 48 . 1 12 Failed 47 | . 1 . . . 2 9 . . . . 7 2 . 10 . . . . 3 13 Catastrophic 11 | . . . . . . 2 . . . . . . . 3 . . . . . 6 Database Lockouts . | . . . . . . . . . . . . . . . . . . . . . Manual 5 | . . . 2 . . 2 . . . . . 1 . . . . . . . . Terminals 52 | . 3 . . . 2 7 . . . . 6 3 . 11 1 . . . 4 15 Fabricators 7 | . . . . . . 3 . . . . . . . 4 . . . . . . Repair Stations 2 | . . . . . . . . . . . 2 . . . . . . . . . Recycling Units 2 | . . . . . . . . . . . . . . . . . . . . 2 Scanalyzers 17 | . . . . . 4 6 . . . . . . . 2 . . . . . 5 Garrison Access 3 | . . . . . . . . . . . . . . . . . . . . 3 Terminal Hacks 96 | . 2 . 1 . . 1 . 1 30 . 1 1 . 3 1 . 48 . 1 6 Record 51 | . . . . . . . . . 11 . . . . 2 1 . 36 . . 1 Part Schematic 16 | . . . . . . . . . 11 . . . . . . . 4 . . 1 Robot Schematic 5 | . . . . . . . . . 5 . . . . . . . . . . . Robot Analysis 4 | . . . . . . . . . . . . . . . . . 4 . . . Prototype ID Bank 7 | . . . . . . . . . 3 . . . . . . . 4 . . . Open Door 1 | . . . . . . . . 1 . . . . . . . . . . . . Open DSF 6 | . . . . . . 1 . . . . 1 . . 1 . . . . 1 2 Branch Access Points 1 | . . . . . . . . . . . . . . . . . . . . 1 Alert Level 2 | . 1 . . . . . . . . . . 1 . . . . . . . . Zone Layout 2 | . 1 . . . . . . . . . . . . . . . . . . 1 Proto ID Catalog 1 | . . . 1 . . . . . . . . . . . . . . . . . Fabricator Hacks 3 | . . . . . . 1 . . . . . . . 2 . . . . . . Load Schematic 1 | . . . . . . . . . . . . . . 1 . . . . . . Build 2 | . . . . . . 1 . . . . . . . 1 . . . . . . Repair Station Hacks . | . . . . . . . . . . . . . . . . . . . . . Recycling Unit Hacks 1 | . . . . . . . . . . . . . . . . . . . . 1 Retrieve Components 1 | . . . . . . . . . . . . . . . . . . . . 1 Scanalyzer 16 | . . . . . 4 5 . . . . . . . 2 . . . . . 5 Insert Component 6 | . . . . . 2 2 . . . . . . . 1 . . . . . 1 Analyze 7 | . . . . . 2 3 . . . . . . . 1 . . . . . 1 Retrieve Study 3 | . . . . . . . . . . . . . . . . . . . . 3 Garrison Access Hacks . | . . . . . . . . . . . . . . . . . . . . . Unauthorized Hacks . | . . . . . . . . . . . . . . . . . . . . . Terminals . | . . . . . . . . . . . . . . . . . . . . . Fabricators . | . . . . . . . . . . . . . . . . . . . . . Repair Stations . | . . . . . . . . . . . . . . . . . . . . . Recycling Units . | . . . . . . . . . . . . . . . . . . . . . Scanalyzers . | . . . . . . . . . . . . . . . . . . . . . Garrison Access . | . . . . . . . . . . . . . . . . . . . . . Data Cores Recovered 1 | . . . . . . 1 . . . . . . . . . . . . . . Used 1 | . . . . . . 1 . . . . . . . . . . . . . . Hacking Detections 28 | . 1 . . . 2 5 . . . . 2 1 . 8 . . . . 1 8 Full Trace Events 3 | . . . . . . . . . . . 1 . . 1 . . . . . 1 Feedback Events . | . . . . . . . . . . . . . . . . . . . . . Feedback Blocked . | . . . . . . . . . . . . . . . . . . . . . Robot Schematics Acquired 5 | . . . . . . . . . 5 . . . . . . . . . . . Robots Built . | . . . . . . . . . . . . . . . . . . . . . Authchips . | . . . . . . . . . . . . . . . . . . . . . Time . | . . . . . . . . . . . . . . . . . . . . . Total Robot Build Rating . | . . . . . . . . . . . . . . . . . . . . . Part Schematics Acquired 22 | . . . . . 2 2 . . 11 . . . . 1 . . 4 . . 2 Parts Built 4 | . . . . . . 2 . . . . . . . 2 . . . . . . Authchips . | . . . . . . . . . . . . . . . . . . . . . Time 100 | . . . . . . 42 . . . . . . . 58 . . . . . . Total Part Build Rating 22 | . . . . . . 8 . . . . . . . 14 . . . . . . Part Studies Acquired 3 | . . . . . . . . . . . . . . . . . . . . 3 Parts Repaired . | . . . . . . . . . . . . . . . . . . . . . Time . | . . . . . . . . . . . . . . . . . . . . . Parts Recycled . | . . . . . . . . . . . . . . . . . . . . . Recycled Matter . | . . . . . . . . . . . . . . . . . . . . . Retrieved Matter . | . . . . . . . . . . . . . . . . . . . . . Retrieved Components 2 | . . . . . . . . . . . . . . . . . . . . 2 Parts Scanalyzed 6 | . . . . . 2 2 . . . . . . . 1 . . . . . 1 Part Schematics Acquired 6 | . . . . . 2 2 . . . . . . . 1 . . . . . 1 Parts Damaged . | . . . . . . . . . . . . . . . . . . . . . Bothacking | -11 -10 -10 -10 -9 -8 -7 -7 -7 -7 -6 -6 -6 -6 -5 -5 -5 -5 -4 -4 -3 ------------ Run | Yrd Mat Min Exi Min Mat Fac Low Low Dat Pro Fac Ext Cet Fac Upp Upp Zhi Pro Fac Res Used RIF Installer . | . . . . . . . . . . . . . . . . . . . . . Robots Hacked . | . . . . . . . . . . . . . . . . . . . . . Non-combat . | . . . . . . . . . . . . . . . . . . . . . Combat . | . . . . . . . . . . . . . . . . . . . . . Robot Hacks Applied . | . . . . . . . . . . . . . . . . . . . . . Relay Couplers Released . | . . . . . . . . . . . . . . . . . . . . . Fabnet Peak Effective % . | . . . . . . . . . . . . . . . . . . . . . Robots Rewired 12 | . . . . . . . . . . 2 . 10 . . . . . . . . Allies Hacked . | . . . . . . . . . . . . . . . . . . . . . Hacks Repelled . | . . . . . . . . . . . . . . . . . . . . . Allies | -11 -10 -10 -10 -9 -8 -7 -7 -7 -7 -6 -6 -6 -6 -5 -5 -5 -5 -4 -4 -3 -------- Run | Yrd Mat Min Exi Min Mat Fac Low Low Dat Pro Fac Ext Cet Fac Upp Upp Zhi Pro Fac Res Total Allies 20 | . . . . 4 . . . . . 2 . 14 . . . . . . . . Largest Group 6 | . . . . 3 3 . . . . 2 . 6 . . . . . . . . Highest-Rated Group 199 | . . . . 40 40 . . . . 64 . 199 . . . . . . . . Highest-Rated Ally 39 | . . . . 31 16 . . . . 32 . 39 . . . . . . . . Total Orders 2 | . . . . . . . . . . . . 2 . . . . . . . . STAY 1 | . . . . . . . . . . . . 1 . . . . . . . . FOLLOW 1 | . . . . . . . . . . . . 1 . . . . . . . . Ally Attacks 116 | . . . . . 14 . . . . 11 . 91 . . . . . . . . Total Damage 2506 | . . . . . 182 . . . . 500 . 1824 . . . . . . . . Kills 22 | . . . . . 2 . . . . 4 . 16 . . . . . . . . Allies Corrupted . | . . . . . . . . . . . . . . . . . . . . . Allies Melted . | . . . . . . . . . . . . . . . . . . . . . Intel | -11 -10 -10 -10 -9 -8 -7 -7 -7 -7 -6 -6 -6 -6 -5 -5 -5 -5 -4 -4 -3 ------- Run | Yrd Mat Min Exi Min Mat Fac Low Low Dat Pro Fac Ext Cet Fac Upp Upp Zhi Pro Fac Res Active Infowar (turns) 179 | . . . . . 8 4 . . . . 113 18 . 34 . . . . . 2 Sensors 2 | . . . . . . . . . . . . . . . . . . . . 2 Terrain 8 | . . . . . 8 . . . . . . . . . . . . . . . Cloaking 30 | . . . . . . . . . . . . . . 30 . . . . . . Jamming 135 | . . . . . . . . . . . 113 18 . 4 . . . . . . ECM 45 | . . . . . . 4 . . . . 37 4 . . . . . . . . Robot Analysis Total 4 | . . . . . . . . . . . . . . . . . 4 . . . Derelict Logs Recovered 12 | . . 2 . 1 . . 2 2 . 1 . . . . 1 1 . 2 . . Drone Launches . | . . . . . . . . . . . . . . . . . . . . . Drone Recoveries . | . . . . . . . . . . . . . . . . . . . . . Exploration | -11 -10 -10 -10 -9 -8 -7 -7 -7 -7 -6 -6 -6 -6 -5 -5 -5 -5 -4 -4 -3 ------------- Run | Yrd Mat Min Exi Min Mat Fac Low Low Dat Pro Fac Ext Cet Fac Upp Upp Zhi Pro Fac Res Turns Passed 11023 | 116 451 466 378 831 496 1157 1112 488 102 874 332 1085 27 646 202 508 181 382 165 1024 Spaces Moved 9887 | 52 251 227 235 391 281 728 882 368 89 674 482 1289 54 1044 359 1089 199 300 132 761 Core 1157 | 1 . . . . . . . . . . . 9 54 247 . 523 101 . . 222 Treads 1198 | 51 251 227 235 391 43 . . . . . . . . . . . . . . . Legs 1062 | . . . . . . . . . . . . . . . . . 98 300 131 533 Wheels 2979 | . . . . . 238 728 882 368 89 674 . . . . . . . . . . Hover 356 | . . . . . . . . . . . . . . 114 218 17 . . 1 6 Flight 3135 | . . . . . . . . . . . 482 1280 . 683 141 549 . . . . Fastest Speed 30 | 50 160 160 160 160 100 115 115 115 115 115 30 30 50 45 42 42 50 120 120 50 Average Speed 88 | 157 160 160 160 188 121 115 115 115 115 115 30 31 50 58 52 46 84 120 120 101 Slowest Speed 240 | 160 160 160 160 240 160 115 145 115 115 115 112 200 50 125 60 100 120 120 230 220 Overloaded Moves . | . . . . . . . . . . . . . . . . . . . . . Propulsion Burnouts . | . . . . . . . . . . . . . . . . . . . . . Robots Hopped 23 | . . . . . . . . . . . . 19 . 2 2 . . . . . Potential Cave-ins . | . . . . . . . . . . . . . . . . . . . . . Cave-ins Triggered . | . . . . . . . . . . . . . . . . . . . . . Teleports 1 | . . . . . . . . . . . . . . . . . 1 . . . Exploration Rate (%) 49 | 4 39 58 60 82 27 19 96 65 75 83 11 70 23 25 56 96 62 53 5 26 Regions Visited 20 Branch Regions 13 Pre-discovered Areas 7 | . . . . . . . 1 . 1 1 . . . . . 1 3 . . . Known Exits Taken 3 | . . . 1 . . . . 1 . . . . . 1 . . . . . . Unknown Exits Taken 17 | 1 1 1 . 1 1 1 1 . 1 1 1 1 1 . 1 1 1 1 1 . Scrap Searched 22 | . . . . 1 . . 3 1 . 5 . . . . 4 5 . 3 . . Spaces Dug . | . . . . . . . . . . . . . . . . . . . . . Terrain Destroyed 354 | . . 37 . 72 32 2 100 59 . 38 . . . . 5 . . 2 . 7 Melee . | . . . . . . . . . . . . . . . . . . . . . Projectile 18 | . . . . . 3 . . 2 . 4 . . . . . . . 2 . 7 AOE 336 | . . 37 . 72 29 2 100 57 . 34 . . . . 5 . . . . . Terrain Rammed . | . . . . . . . . . . . . . . . . . . . . . Walls Destroyed . | . . . . . . . . . . . . . . . . . . . . . Machines Disabled . | . . . . . . . . . . . . . . . . . . . . . Actions | -11 -10 -10 -10 -9 -8 -7 -7 -7 -7 -6 -6 -6 -6 -5 -5 -5 -5 -4 -4 -3 --------- Run | Yrd Mat Min Exi Min Mat Fac Low Low Dat Pro Fac Ext Cet Fac Upp Upp Zhi Pro Fac Res Total 11594 | 72 289 277 237 452 371 1002 934 400 88 746 667 1901 53 1068 365 1094 207 313 136 922 Wait 877 | . 16 15 . 20 6 191 9 . . 14 146 389 . 15 . . . . . 56 Move 9828 | 51 250 226 234 390 280 727 881 367 88 673 481 1257 53 1039 354 1088 198 299 131 761 Hop 16 | . . . . . . . . . . . . 12 . 2 2 . . . . . Pick Up 82 | 6 8 3 2 6 11 18 4 1 . 7 4 6 . . . 1 . 1 2 2 Fast Attach 82 | 6 1 . . 2 3 3 1 2 . 1 4 6 . 10 2 1 9 1 3 27 Attach 40 | . 1 2 . 1 6 5 3 1 . 2 11 3 . . 2 . . 2 . 1 Detach 13 | . . . . . 2 . . . . 2 2 2 . . 2 1 . 1 . 1 Swap 36 | . 1 2 . 5 6 8 1 2 . 3 2 4 . . . . . 1 . 1 Drop 84 | . 5 . . 5 9 14 2 2 . 5 14 17 . 2 . 3 . . . 6 Fire 317 | 9 7 29 . 23 48 36 33 23 . 24 3 36 . . 3 . . 8 . 35 Melee 27 | . . . . . . . . . . . . . . . . . . . . 27 Ram 1 | . . . . . . . . 1 . . . . . . . . . . . . Kick 5 | . . . . . . . . . . . . . . . . . . . . 5 Crush . | . . . . . . . . . . . . . . . . . . . . . Escape Stasis 15 | . . . . . . . . . . . . 15 . . . . . . . . Rewire 171 | . . . 1 . . . . 1 . 15 . 154 . . . . . . . . Trap . | . . . . . . . . . . . . . . . . . . . . . Miscellaneous . | . . . . . . . . . . . . . . . . . . . . . Route ------- -11/Scrapyard -10/Materials (discovered 2 exits: [*Mat] / [*Min]) -10/Mines (discovered 3 exits: [*Mat x2] / *Exi) -10/Exiles (discovered 2 exits: *Min x2) -9/Mines -8/Materials -7/Factory -7/Lower Caves -7/Lower Caves (discovered 2 exits: *Fac / *Dat) -7/Data Miner -6/Proximity Caves -6/Factory -6/Extension (discovered 2 exits: *Fac / [*Cet]) -6/Cetus -5/Factory (discovered 2 exits: *Upp x2) -5/Upper Caves -5/Upper Caves (discovered 2 exits: *Fac / *Zhi) -5/Zhirov -4/Proximity Caves -4/Factory -3/Research (discovered 3 exits: Arm / Qua x2) History --------- Turn | Location | Event 43 | -11/Scrapyard | Discovered new exit (range 14) 117 | -11/Scrapyard | Entered Materials 118 | -10/Materials | Met a group of wandering Federalists 209 | -10/Materials | Discovered new exit (range 12) 314 | -10/Materials | Build established: Mutant 557 | -10/Materials | Discovered new exit (range 8) 568 | -10/Materials | Entered Mines 650 | -10/Mines | Assembled infested the area 658 | -10/Mines | Learned Materials terminal intel 727 | -10/Mines | Found a Scrap Suit stashed away for nefarious purposes 730 | -10/Mines | Found Scrap Suit 837 | -10/Mines | Discovered new exit (range 15) 998 | -10/Mines | Discovered new exit (range 7) 1028 | -10/Mines | Deemed a non-threat by the Exiles lab entrance 1028 | -10/Mines | Discovered new exit (range 5) 1034 | -10/Mines | Entered Exiles 1035 | -10/Exiles | Identified exit to Mines 1074 | -10/Exiles | Met 8R-AWN 1102 | -10/Exiles | Met EX-HEX 1152 | -10/Exiles | Met EX-BIN 1170 | -10/Exiles | Aligned with FarCom system 1171 | -10/Exiles | Given EX-Vault access code 1219 | -10/Exiles | Opened EX-Vault 1232 | -10/Exiles | Found Superbattery 1262 | -10/Exiles | Warned to stay clear of 0b10 Research branches 1310 | -10/Exiles | Met EX-DEC 1412 | -10/Exiles | Left Exiles lab with Superbattery 1412 | -10/Exiles | Entered Mines 1414 | -9/Mines | Met a Derelict bent on vengeance 1439 | -9/Mines | Core integrity fell below 50% 1473 | -9/Mines | Learned Materials non-interactive machine intel 1488 | -9/Mines | Received a Mining Laser from a helpful Derelict 1554 | -9/Mines | Found DCF Scrap (13 items) 2209 | -9/Mines | Discovered new exit (range 7) 2230 | -9/Mines | Assisted by bots powering up and referring to "LRC-V3" 2243 | -9/Mines | Entered Materials 2243 | -8/Materials | Accompanied by 3 allies 2243 | -8/Materials | Evolved 4 slots: Propulsion x2, Utility x2 2244 | -8/Materials | Loaded intel: 36 non-interactive machine locations 2245 | -8/Materials | Loaded intel: 12 terminal locations 2423 | -8/Materials | Garrison activated, responded to threat 2457 | -8/Materials | Lost 3 allies 2687 | -8/Materials | Discovered new exit (range 16) 2739 | -8/Materials | Entered Factory 2739 | -7/Factory | Evolved 2 slots: Utility x2 2915 | -7/Factory | Fabricated Xenon Bombardment Thruster (x2) 3280 | -7/Factory | Lost 3 parts (1p1n1w) 3623 | -7/Factory | Allied Derelicts emerged from ambush trap array 3719 | -7/Factory | Found Prototype Device 3725 | -7/Factory | Lost 3 allies 3745 | -7/Factory | Identified Active Sensor Suite 3891 | -7/Factory | Discovered new exit (range 4) 3896 | -7/Factory | Entered Lower Caves 3967 | -7/Lower Caves | Attracted the attention of an 0b10 checkpoint 4967 | -7/Lower Caves | Discovered new exit (range 12) 5008 | -7/Lower Caves | Entered another Lower Caves area 5025 | -7/Lower Caves | Found Prototype Device 5044 | -7/Lower Caves | Learned Factory garrison access intel 5047 | -7/Lower Caves | Identified Heart of Steel 5193 | -7/Lower Caves | Discovered new exit (range 12) 5389 | -7/Lower Caves | Identified exit to Data Miner 5496 | -7/Lower Caves | Entered Data Miner 5496 | -7/Data Miner | Discovered new exit (range 6) 5518 | -7/Data Miner | Met Data Miner 5552 | -7/Data Miner | Learned location of Section 7 (-2) 5552 | -7/Data Miner | Acquired the access code to Warlord's prototype stash 5572 | -7/Data Miner | Received God Mode back door access code from Data Miner 5598 | -7/Data Miner | Entered Proximity Caves 5718 | -6/Proximity Caves | Attracted the attention of an 0b10 outpost 5752 | -6/Proximity Caves | Core integrity fell below 50% 5777 | -6/Proximity Caves | Destroyed 8 combat bots 6457 | -6/Proximity Caves | Discovered new exit (range 8) 6472 | -6/Proximity Caves | Entered Factory 6472 | -6/Factory | Evolved 2 slots: Power x1, Propulsion x1 6473 | -6/Factory | Loaded intel: 4 garrison access locations 6772 | -6/Factory | Build established: Infiltrator-Sprinter 6803 | -6/Factory | Discovered new exit (range 6) 6804 | -6/Factory | Entered Extension 6931 | -6/Extension | Rescued a captive Derelict 7078 | -6/Extension | Rescued a captive Derelict 7087 | -6/Extension | Rescued a captive Derelict 7119 | -6/Extension | Rescued a captive Derelict 7121 | -6/Extension | Rescued a captive Derelict 7279 | -6/Extension | Rescued a captive Derelict 7280 | -6/Extension | Rescued a captive Derelict 7454 | -6/Extension | Disrupted transfer network 7555 | -6/Extension | Lost 3 allies 7837 | -6/Extension | Spotted B-75 Beast 7839 | -6/Extension | Spotted B-75 Beast 7883 | -6/Extension | Discovered new exit (range 16) 7884 | -6/Extension | Discovered new exit (range 14) 7889 | -6/Extension | Entered Cetus 7896 | -6/Cetus | Spotted Cetus Guard 7897 | -6/Cetus | Spotted Cetus Guard 7898 | -6/Cetus | Spotted Cetus Guard 7898 | -6/Cetus | Spotted Cetus Guard 7899 | -6/Cetus | Core integrity fell below 50% 7909 | -6/Cetus | Discovered new exit (range 16) 7916 | -6/Cetus | Entered Factory 7916 | -5/Factory | Evolved 2 slots: Propulsion x1, Utility x1 7917 | -5/Factory | Identified exit to Upper Caves 7917 | -5/Factory | Lost 8 parts (5n3u) 7933 | -5/Factory | Identified exit to DSF 8085 | -5/Factory | Found Prototype Processor 8085 | -5/Factory | Identified Exp. Targeting Computer 8099 | -5/Factory | Fabricated Adv. Power Amplifier? 8135 | -5/Factory | Build established: Mutant 8513 | -5/Factory | Discovered exit to Upper Caves (range 16) 8562 | -5/Factory | Entered Upper Caves 8663 | -5/Upper Caves | Attracted the attention of an 0b10 checkpoint 8728 | -5/Upper Caves | Discovered new exit (range 6) 8746 | -5/Upper Caves | Build established: Infiltrator-Mutant 8764 | -5/Upper Caves | Entered another Upper Caves area 8801 | -5/Upper Caves | Entered a destroyed Warlord outpost 8862 | -5/Upper Caves | Discovered new exit (range 15) 8865 | -5/Upper Caves | Learned location of Armory (-3) 9046 | -5/Upper Caves | Lost 6 parts (3n3u) 9101 | -5/Upper Caves | Discovered new exit (range 12) 9258 | -5/Upper Caves | Build established: Mutant 9272 | -5/Upper Caves | Entered Zhirov 9272 | -5/Zhirov | Discovered new exit (range 3) 9282 | -5/Zhirov | Met Zhirov 9291 | -5/Zhirov | Learned location of Quarantine (-3) 9291 | -5/Zhirov | Learned location of Testing (-2) 9291 | -5/Zhirov | Learned location of Command (-1) 9301 | -5/Zhirov | Zhirov requested help retrieving the SGEMP Prototype 9310 | -5/Zhirov | Found Alien Artifact 9310 | -5/Zhirov | Identified Integrated Reactor 9310 | -5/Zhirov | Installed Integrated Reactor, increased core energy generation (+10) 9360 | -5/Zhirov | Found Alien Artifact 9360 | -5/Zhirov | Identified Transdimensional Reconstructor 9360 | -5/Zhirov | Warped through subspace 9361 | -5/Zhirov | Core integrity fell below 50% 9453 | -5/Zhirov | Entered Proximity Caves 9534 | -4/Proximity Caves | Learned Research emergency access door positions 9609 | -4/Proximity Caves | Learned Research security intel 9626 | -4/Proximity Caves | Build established: Hacker-Mutant 9681 | -4/Proximity Caves | Spotted B-86 Titan 9774 | -4/Proximity Caves | Spotter reported a threat 9786 | -4/Proximity Caves | Spotter reported a threat 9817 | -4/Proximity Caves | Discovered new exit (range 16) 9835 | -4/Proximity Caves | Entered Factory 9835 | -4/Factory | Evolved 2 slots: Propulsion x1, Utility x1 9982 | -4/Factory | Discovered new exit (range 14) 10000 | -4/Factory | Entered Research 10000 | -3/Research | Evolved 2 slots: Propulsion x1, Utility x1 10354 | -3/Research | Lost 7 parts (1p1n4u1w) 10697 | -3/Research | Incoming investigation squad redirected 10741 | -3/Research | Identified exit to Armory 10741 | -3/Research | Identified exit to Quarantine 10881 | -3/Research | Lost 5 parts (4n1u) 10882 | -3/Research | System corruption reached 10% 10915 | -3/Research | Core integrity fell below 50% 10930 | -3/Research | Spotted B-86 Titan 10967 | -3/Research | Lost 10 parts (1p3n4u2w) 11015 | -3/Research | Core integrity fell below 20% 11024 | -3/Research | Destroyed by H-77 Assassin with Coil Gun Last Messages --------------- 11001_ Penetrated by Slug. 11001_ Adv. Hacking Suite destroyed. 11005_ Triggered Alarm Trap. 11005_ An alarm sounds. 11005_ ALERT: Alarm triggered, dispatching investigation squad. 11011_ Penetrated by Slug. 11013_ Slug penetrates Door. 11013_ Drone sends a signal. 11014_ ALERT: Potential suspicious activity detected, Programmers report to Research Zone 3J. 11014_ Adv. System Shield destroyed. 11017_ Slug penetrates Wall. 11017_ Penetrated by Slug. 11023_ ESX2HK 7UF< 11024_ U-05 Engineer works on Particle Synthesizer. 11024_ Penetrated by Slug. Map ----- +----------------------------------------------------+ | ?????????????????????????????????????????????????? | | ?????????????????????????????????????????????????? | | ?????????????????????????????????????????????????? | | ?????????????????????????????????????????????????? | | ?????????????????????????????????????????????????? | | ?????????????????????????????????????????????????? | | ?????????????????????????????????????????????????? | | ?????????????????????????????????????????????????? | | ?????????????????????????????????????????????????? | | ??????????????????????????????????????>??????????? | | ??????????????????????? ???????????????????????? | | ??????????????????????# ???????????????????????? | | ??????????????????????# ???????????????????????? | | ??????????????????????#k ???????????????????????? | | ??????????????????????# k???????????????????????? | | ??????????????????????# ???????????????????????? | | ??????????????????????# k#??????????????????????? | | ??????????????????????# #??????????????????????? | | ??????????????????????# #??????????????????????? | | ??????????????????????#R ##?????????????????????? | | ??????????????????????# ??????????????????????? | | ??????????????????????+ ??????????????????????? | | ??????????????????????# ??????????????????????? | | ??????????????????????# #?###########??????????? | | ??????????????????????# # #########??? | | ??????????????????????# @# ##= #### | | ??????????????????????# ; " ## # | | ??????????????????????#k # u ## # | | ??????????????????????# #= < ## # | | ??????????????????????#k #? [ ## # | | ??????????????????????# #? ## # | | ??????????????????????# k#??#########??? !# | | ??????????????????????# #????????????####+### | | ??????????????????????#h #????????????# | | ??????????????????????# h #????????????# | | ??????????????????????# #????????????# | | ??????????????????????# w#????????????# | | ???????????????######?# #????????????# ###### | | ???????????????# # #????????????# #????? | | ???????????????# # k############## #????? | | ???????????????# + #????? | | ???????????????# # #????? | | ???????????????# # #????? | | ???????????????# ?# #????? | | ???????????????######?# ###################????? | | ???????????????# # # ! #??????????????? | | ???????????????#!!! # # #??????????????? | | ???????????????#!!! + " #??????????????? | | ???????????????#!!! # # #??????????????? | | ???????????????# # # #??????????????? | +----------------------------------------------------+ Best States ------------- Heat Dissipation 136 Energy Generation 57 Energy Capacity 1990 Matter Stores 300 Matter Capacity 300 Sight Range 16 Robot Scan Range 18 Terrain Scan Range 16 Terrain Scan Density 135 ECM Strength 2 Jamming Range 12 Cloak Strength 2 Power Amplification 30 Additional Mass Support 9 Armor Coverage 600 Weapon Shielding 90 Melee Speed Boost 30 Phase Shifting 10 Evasion (%) 80 Targeting Accuracy 20 Recoil Reduction 6 Matter Filtering 75 Energy Filtering 30 Offensive Hacking 14 Defensive Hacking 14 Item Schematics ----------------- VTOL Module | -8/Materials | Scanalyzed Hcp. Storage Unit | -8/Materials | Scanalyzed Xenon Bombardment Thruster | -7/Factory | Scanalyzed Hvy. Armor Plating | -7/Factory | Scanalyzed Combat Drone Bay | -7/Data Miner | Free Lgt. Regenerative Plating | -7/Data Miner | Free Cld. Cesium-ion Thruster | -7/Data Miner | Free Gravity Neutralizer | -7/Data Miner | Free Com. Ion Cannon | -7/Data Miner | Free Thunder Leg | -7/Data Miner | Free Adv. Hacking Suite | -7/Data Miner | Free Enh. Gauss Cannon | -7/Data Miner | Free Proton Cannon | -7/Data Miner | Free Imp. Thermal Shield | -7/Data Miner | Free Hvy. Disruptor Cannon | -7/Data Miner | Free Shock Bomb Launcher | -5/Factory | Scanalyzed Assault Drone Bay | -5/Zhirov | Free Exp. Heat Sink | -5/Zhirov | Free Exp. Optical Array | -5/Zhirov | Free Imp. Arc Thrower | -5/Zhirov | Free Cmb. Antigrav System | -3/Research | Hacked Adv. Power Amplifier | -3/Research | Scanalyzed Robot Schematics ------------------ R-10 Processor | -7/Data Miner | Free Y-54 Guardian | -7/Data Miner | Free A-15 Conveyor | -7/Data Miner | Free W-25 Informer | -7/Data Miner | Free X-67 Chaingunner | -7/Data Miner | Free Fabricated ------------ Xenon Bombardment Thruster | x2 | -7/Factory | Preloaded Adv. Power Amplifier | x2 | -5/Factory | Preloaded Repaired ---------- Nothing Studied --------- Q-thruster | -3/Research | Hacked Imp. Antigrav System | -3/Research | Hacked Matter Neutralizer | -3/Research | Hacked Alien Tech Used ----------------- Integrated Reactor Transdimensional Reconstructor Achievements -------------- A Problem For Future Me Bumper Bots Construction Begets Destruction For Emergencies Only Item+ Look Less Dangerous Next Time Overwhelming Streaker There's More Where That Came From Challenges ------------ None Game ------ Seed NetworkMetaArachnoskeleton Manual? 0 Play Time 03:00:43 Cumulative 116.4 hours Start 2025.11.19 @ 12:23:35 End 2025.11.19 @ 19:10:24 Sessions 3 Manual Loads 0 Difficulty Rogue Special Mode None Game No. 84 Rogue 84 Adventurer 0 Explorer 0 Win Type - Total 0 Types 0/0/0/0/0/0/0/0/0/0 Lore% 32 Gallery% 46 Achievement% 31 Wizard Run 0 Options --------- Layout 1 ASCII 0 Keyboard 0 Movement Numpad Keybinds 0 Fullscreen 1 Font 24/Smallcaps Map View 50x35 Zoom Use 0% Tactical HUD 1 Map Filters NONE Filters NONE Steam 1 RUN: b33c1427-efab-4533-90ca-21895d336436